bitfinex-derivatives/quotes_ETHF0:USTF0_20241023
["timestamp","ask_amount","ask_price","bid_price","bid_amount"]
[1729707704542,3.2078,2475.6,2475.5,40.8]
[1729707704746,3.2078,2475.6,2475.5,41.20438]
[1729707705652,5.6168,2476.0,2475.5,45.24358]
[1729707705850,6.0211,2476.0,2475.8,0.40433]
[1729707706355,5.6168,2476.0,2475.9,0.40431]
[1729707706555,3.2078,2476.0,2475.7,1.818]
[1729707706850,0.40432,2475.9,2475.8,0.40433]
[1729707707849,3.2078,2476.0,2475.9,0.40431]
[1729707708249,3.2078,2476.0,2475.9,4.44351]
[1729707709661,0.40426,2476.3,2476.0,0.40429]
[1729707709965,3.612,2476.6,2476.3,0.40424]
[1729707710258,3.612,2476.6,2476.0,3.2078]
[1729707710259,3.2078,2476.6,2476.4,0.40422]
[1729707710457,3.612,2476.6,2476.1,0.40428]
[1729707710646,3.2078,2476.6,2475.8,5.38081]
[1729707710856,3.2078,2476.6,2475.9,2.22231]
[1729707710857,0.40429,2476.1,2475.9,2.22231]
[1729707711053,0.4043,2476.0,2475.9,1.818]
[1729707711258,5.27084284,2476.5,2475.5,40.8]
[1729707711259,4.21844,2476.3,2475.5,40.8]
[1729707711558,0.40433,2475.9,2475.6,2.22235]
[1729707711855,7.46810284,2476.0,2475.6,2.22235]
[1729707711856,0.40434,2475.8,2475.6,1.818]
[1729707712449,0.40435,2475.7,2475.6,1.818]
[1729707712661,0.40438,2475.5,2475.4,10.111]
[1729707712850,0.40438,2475.5,2475.4,1.818]
[1729707714055,3.2078,2475.7,2475.4,1.818]
[1729707714256,0.40438,2475.5,2475.4,1.818]
[1729707714655,3.2078,2475.7,2475.4,1.818]
[1729707714965,3.2078,2475.7,2475.6,0.40436]
[1729707716051,5.96148,2476.2,2475.5,3.2078]
[1729707716052,3.2078,2476.0,2475.5,3.2078]
[1729707716362,3.2078,2476.3,2475.8,4.37]
[1729707716552,5.7367,2476.7,2475.8,3.2078]
[1729707716752,5.7367,2476.7,2475.9,0.40431]
[1729707716753,4.21839,2476.4,2475.9,0.40431]
[1729707716953,0.40429,2476.1,2475.9,0.40431]
[1729707717254,0.40429,2476.1,2475.8,3.2078]
[1729707717449,4.71400577,2476.3,2476.1,0.40427]
[1729707717650,0.40427,2476.2,2476.0,0.40429]
[1729707717860,4.71400577,2476.3,2476.1,0.40428]
[1729707718159,0.40428,2476.2,2475.9,0.40431]
[1729707718458,0.40428,2476.2,2476.0,0.40429]
[1729707719051,3.2078,2476.4,2475.8,3.2078]
[1729707719254,0.40425,2476.3,2476.0,0.40428]
[1729707719459,3.2078,2476.4,2475.9,0.40431]
[1729707719460,0.4043,2476.1,2475.9,0.40431]
[1729707719660,1.01063,2476.3,2475.6,2.525]
[1729707719851,0.4043,2476.0,2475.8,0.40432]
[1729707720053,0.4043,2476.1,2475.8,0.40432]
[1729707720564,0.40427,2476.2,2475.7,1.818]
[1729707720865,0.40427,2476.2,2476.0,0.4043]
[1729707721156,3.2078,2476.4,2475.7,1.818]
[1729707721157,3.2078,2476.4,2475.9,4.37]
[1729707721357,3.61198,2476.7,2476.5,0.40421]
[1729707721561,3.2078,2476.7,2476.0,4.21853]
[1729707721865,3.2078,2476.7,2476.5,0.4042]
[1729707722060,3.2078,2476.7,2476.6,0.4042]
[1729707722257,3.2078,2476.7,2476.3,1.01063]
[1729707722258,3.2078,2476.7,2476.5,1.818]
[1729707722458,0.4042,2476.6,2476.5,1.818]
[1729707722861,0.40425,2476.3,2476.2,1.818]
[1729707723162,0.40423,2476.5,2476.2,2.22226]
[1729707723360,4.3711053,2476.6,2476.2,1.818]
[1729707723563,3.2078,2477.0,2476.6,0.4042]
[1729707723757,3.2078,2477.0,2476.5,4.37]
[1729707723958,3.2078,2477.3,2476.9,0.40415]
[1729707724162,3.2078,2477.3,2477.2,0.40409]
[1729707724367,3.2078,2477.6,2477.0,1.818]
[1729707724553,3.2078,2477.6,2477.0,6.03613]
[1729707724759,3.2078,2477.6,2477.5,0.40405]
[1729707724961,2.3906,2478.6,2477.4,4.77407]
[1729707724962,3.2078,2477.9,2477.4,4.77407]
[1729707725155,3.2078,2478.2,2477.7,4.37]
[1729707725355,5.0987,2478.5,2478.0,4.37]
[1729707725356,4.33350204,2478.5,2478.0,4.37]
[1729707725661,3.61162,2479.0,2478.6,0.40387]
[1729707725856,3.2078,2479.0,2478.7,1.812]
[1729707726066,3.61161,2479.0,2478.7,1.812]
[1729707726264,3.61161,2479.0,2478.8,40.8]
[1729707726265,0.40381,2479.0,2478.8,40.8]
[1729707726566,5.6687,2479.3,2478.8,40.8]
[1729707726772,6.38826,2480.0,2479.0,0.4038]
[1729707726773,0.40374,2479.5,2479.0,0.4038]
[1729707727067,0.40372,2479.6,2478.8,48.3778]
[1729707727267,0.40372,2479.6,2479.1,3.61158]
[1729707727464,0.40372,2479.6,2479.2,0.40377]
[1729707727465,4.59084827,2479.5,2479.2,0.40377]
[1729707727673,4.99457827,2479.5,2479.1,3.61158]
[1729707727861,4.59084827,2479.5,2479.1,3.61158]
[1729707728056,3.2078,2480.0,2479.1,11.6114]
[1729707728267,3.2078,2480.0,2479.4,7.5778]
[1729707728459,3.2078,2480.0,2479.4,3.2078]
[1729707728673,3.2078,2480.0,2479.5,1.811]
[1729707728674,0.4037,2479.7,2479.5,1.811]
[1729707729465,3.2078,2480.3,2479.6,4.0328]
[1729707729658,3.2078,2480.3,2479.5,4.37]
[1729707729865,0.07036847,2480.2,2479.6,1.811]
[1729707730073,3.6114,2480.3,2479.7,0.40368]
[1729707730264,3.2078,2480.3,2479.8,0.40366]
[1729707730570,3.2078,2480.3,2480.0,0.40364]
[1729707730967,3.2078,2480.3,2480.1,0.40363]
[1729707731470,3.2078,2480.3,2479.8,7.5778]
[1729707731662,3.6114,2480.3,2479.8,4.77367]
[1729707731859,3.2078,2480.3,2480.2,40.8]
[1729707732259,3.2078,2481.3,2480.2,48.0398]
[1729707732462,0.47385675,2481.2,2480.6,4.37]
[1729707732673,0.40346,2481.2,2480.7,1.811]
[1729707732871,3.2078,2481.3,2480.7,1.811]
[1729707733574,0.40346,2481.2,2480.7,1.811]
[1729707733768,3.61124,2481.3,2480.7,2.21452]
[1729707733971,3.2078,2481.3,2480.7,2.21452]
[1729707734173,3.2078,2481.3,2480.7,1.811]
[1729707734675,3.61124,2481.3,2480.7,2.21452]
[1729707734873,3.61124,2481.3,2480.7,1.811]
[1729707735067,3.2078,2481.3,2480.8,0.40351]
[1729707735274,3.2078,2481.3,2480.7,1.811]
[1729707735471,3.2078,2481.3,2481.0,4.37]
[1729707735967,3.2078,2481.3,2480.7,1.811]
[1729707736167,3.2078,2481.3,2481.2,0.40345]
[1729707736372,2.5519,2482.2,2481.0,4.37]
[1729707736373,3.2078,2481.9,2481.3,0.40342]
[1729707736564,3.61114,2481.9,2481.4,4.77342]
[1729707736877,3.2078,2481.9,2481.5,42.61]
[1729707737080,3.61114,2481.9,2481.5,42.61]
[1729707737373,3.2078,2482.5,2481.7,7.5778]
[1729707737576,2.01552,2483.4,2481.8,1.81]
[1729707737577,3.2078,2482.2,2481.8,1.81]
[1729707738069,3.2078,2482.2,2482.1,4.37]
[1729707738268,3.61109,2482.2,2481.8,1.81]
[1729707738468,3.2078,2482.2,2481.5,40.8]
[1729707738674,3.2078,2482.2,2481.6,1.81]
[1729707739180,0.40331,2482.1,2481.6,2.21338]
[1729707739473,3.2078,2482.2,2481.7,4.37]
[1729707739673,3.2078,2482.2,2481.8,0.40334]
[1729707740379,3.2078,2482.2,2482.0,0.40331]
[1729707740574,3.2078,2482.2,2482.1,0.4033]
[1729707741076,3.2078,2482.5,2482.1,4.0288]
[1729707741272,3.2078,2482.5,2482.0,4.37]
[1729707741475,3.61104,2482.5,2482.0,4.77331]
[1729707741772,3.61105,2482.5,2482.1,1.809]
[1729707741978,3.2078,2482.5,2482.1,1.809]
[1729707742177,3.61104,2482.5,2482.1,1.809]
[1729707742579,3.2078,2482.5,2482.1,1.809]
[1729707742775,3.61105,2482.5,2482.1,1.809]
[1729707742976,3.2078,2482.5,2482.1,2.21229]
[1729707743180,3.2078,2482.8,2482.2,0.40329]
[1729707743381,0.40321,2482.7,2482.2,0.40329]
[1729707743585,4.26343174,2482.9,2482.4,4.37]
[1729707743771,3.2078,2483.1,2482.5,3.2078]
[1729707743974,3.2078,2483.1,2482.7,0.40319]
[1729707744170,3.2078,2483.1,2482.5,3.2078]
[1729707744382,2.5561,2483.4,2482.5,1.808]
[1729707744383,3.2078,2482.8,2482.5,1.808]
[1729707744872,1.00785,2483.2,2482.5,1.808]
[1729707744873,7.71666681,2483.1,2482.7,0.40319]
[1729707745074,3.2078,2483.1,2482.8,40.8]
[1729707745290,3.2078,2483.1,2483.0,0.40316]
[1729707745581,0.40306,2483.6,2483.2,0.40312]
[1729707745772,0.40305,2483.7,2483.3,1.808]
[1729707745976,0.40305,2483.7,2483.4,40.8]
[1729707746172,4.21532,2484.0,2483.4,40.8]
[1729707746476,0.40308,2483.5,2483.4,40.8]
[1729707746673,4.5399187,2483.9,2483.4,40.8]
[1729707746876,0.40309,2483.4,2483.3,1.808]
[1729707747384,0.40308,2483.5,2483.3,1.808]
[1729707747780,7.51904958,2483.7,2483.3,1.808]
[1729707747980,3.2078,2484.0,2483.4,3.2078]
[1729707748188,0.40308,2483.5,2483.3,1.808]
[1729707748380,3.2078,2483.7,2483.2,1.808]
[1729707748576,0.40311,2483.3,2483.2,1.808]
[1729707749475,4.0272,2483.3,2483.1,1.808]
[1729707749678,0.40313,2483.2,2483.1,1.808]
[1729707750582,4.43033,2483.2,2483.1,1.808]
[1729707750887,0.40319,2482.8,2482.6,40.8]
[1729707751088,4.52972572,2483.2,2482.7,1.807]
[1729707751384,0.40318,2482.9,2482.6,42.607]
[1729707751582,0.40321,2482.7,2482.6,40.8]
[1729707751774,0.40321,2482.7,2482.6,42.607]
[1729707752688,0.40311,2483.3,2482.9,0.40317]
[1729707752882,3.2078,2483.4,2483.0,1.807]
[1729707753275,0.40313,2483.2,2483.0,1.807]
[1729707753481,5.0127,2483.6,2483.1,3.2078]
[1729707753675,5.0127,2483.6,2483.2,0.40312]
[1729707753676,5.41577,2483.6,2483.2,0.40312]
[1729707753883,0.40302,2483.9,2483.5,0.40307]
[1729707754184,0.403,2484.0,2483.6,0.40305]
[1729707754389,0.403,2484.0,2483.7,3.2078]
[1729707754685,0.403,2484.0,2483.8,1.807]
[1729707755082,0.40301,2483.9,2483.8,1.807]
[1729707755277,5.03297,2484.3,2483.6,1.803]
[1729707755482,0.40303,2483.8,2483.6,1.803]
[1729707755986,0.40304,2483.7,2483.6,1.803]
[1729707756182,0.40304,2483.8,2483.6,1.803]
[1729707756383,4.0264,2484.0,2483.0,3.2078]
[1729707756682,7.44540861,2483.7,2483.1,1.803]
[1729707756876,0.40309,2483.5,2483.1,0.40313]
[1729707757081,0.40314,2483.1,2483.0,5.0108]
[1729707757697,4.9652,2483.4,2483.0,5.0108]
[1729707757886,0.40313,2483.2,2483.0,3.2078]
[1729707758281,4.9652,2483.4,2483.0,5.0108]
[1729707758482,0.40314,2483.2,2483.0,5.0108]
[1729707758686,0.40314,2483.1,2483.0,5.0108]
[1729707758887,0.40314,2483.1,2483.0,3.2078]
[1729707759082,0.40314,2483.1,2483.0,5.0108]
[1729707759892,0.40313,2483.2,2483.0,9.038]
[1729707760190,4.9652,2483.4,2483.0,5.0108]
[1729707760384,0.40314,2483.2,2483.0,5.0108]
[1729707760594,0.40314,2483.2,2483.1,1.803]
[1729707760888,0.40314,2483.1,2483.0,3.2078]
[1729707761395,0.40319,2482.8,2482.7,1.803]
[1729707762180,0.40321,2482.7,2482.6,45.8108]
[1729707763197,0.40335,2481.8,2481.7,3.2078]
[1729707763491,3.2078,2482.3,2481.7,3.2078]
[1729707763693,0.40334,2481.9,2481.8,40.8]
[1729707763895,0.40333,2482.0,2481.8,40.8]
[1729707764090,3.2078,2482.3,2481.8,40.8]
[1729707764494,0.40334,2481.9,2481.8,40.8]
[1729707765095,0.40332,2482.0,2481.8,40.8]
[1729707765290,0.40331,2482.1,2481.8,45.57334]
[1729707765497,3.2078,2482.3,2481.8,45.57334]
[1729707765695,3.2078,2482.3,2481.8,45.17]
[1729707765891,0.4033,2482.2,2481.9,0.40333]
[1729707766088,2.5515,2482.6,2482.1,7.5778]
[1729707766289,0.40327,2482.4,2482.1,7.9811]
[1729707766492,0.40329,2482.2,2481.9,5.40082]
[1729707766694,2.5515,2482.6,2482.1,3.2078]
[1729707766900,0.4033,2482.1,2481.9,4.9975]
[1729707767195,0.40329,2482.3,2481.9,5.40082]
[1729707767398,0.40329,2482.2,2481.9,4.9975]
[1729707767691,0.40328,2482.3,2482.0,3.61111]
[1729707768494,0.4033,2482.1,2482.0,3.2078]
[1729707769093,1.0081,2482.5,2482.0,3.2078]
[1729707769295,0.4033,2482.1,2482.0,3.2078]
[1729707769494,0.40332,2482.0,2481.9,1.803]
[1729707769893,1.00816,2482.4,2481.8,42.603]
[1729707770305,0.40332,2482.0,2481.8,42.603]
[1729707771595,0.40331,2482.1,2481.8,43.00635]
[1729707772396,0.40331,2482.1,2482.0,3.87]
[1729707773194,6.09499,2482.6,2482.0,3.87]
[1729707773595,0.4033,2482.1,2482.0,3.87]
[1729707773791,5.41152638,2482.5,2482.0,3.87]
[1729707773996,0.4033,2482.2,2482.0,3.87]
[1729707774398,0.40326,2482.4,2482.1,0.4033]
[1729707774602,0.40326,2482.4,2482.0,3.87]
[1729707774905,5.0869,2482.6,2482.1,0.40329]
[1729707775100,5.0869,2482.6,2482.0,3.87]
[1729707775404,0.40329,2482.2,2482.0,3.87]
[1729707775705,4.62761093,2482.5,2482.0,3.87]
[1729707775904,5.773,2483.1,2482.4,3.87]
[1729707776104,5.773,2483.1,2482.2,4.27328]
[1729707776105,4.2158,2482.8,2482.2,4.27328]
[1729707776301,8.74860269,2482.8,2482.2,3.87]
[1729707776496,0.40325,2482.5,2482.3,0.40327]
[1729707776706,1.00802,2482.7,2482.1,3.2078]
[1729707776903,0.40328,2482.3,2482.0,3.87]
[1729707777203,0.40327,2482.3,2482.2,3.87]
[1729707777505,0.40326,2482.4,2482.2,4.27329]
[1729707777698,0.40327,2482.4,2482.2,3.87]
[1729707777896,3.2078,2482.5,2482.2,3.87]
[1729707778101,3.61104,2482.5,2482.3,0.40327]
[1729707778396,0.40326,2482.4,2482.2,3.87]
[1729707779003,0.40326,2482.4,2482.2,4.27328]
[1729707779202,0.40327,2482.3,2482.2,3.87]
[1729707779404,0.40327,2482.4,2482.2,3.87]
[1729707779907,0.40325,2482.4,2482.2,3.87]
[1729707780297,3.2078,2482.5,2482.2,3.87]
[1729707780499,0.40326,2482.4,2482.2,3.87]
[1729707780900,3.2078,2482.5,2482.2,3.87]
[1729707781100,2.4352,2482.8,2482.5,0.40323]
[1729707781304,2.4352,2482.8,2482.6,3.87]
[1729707781502,3.2078,2483.3,2482.6,5.673]
[1729707781703,0.40315,2483.1,2482.9,3.87]
[1729707781899,3.2078,2483.3,2483.0,40.8]
[1729707782101,3.61091,2483.3,2483.1,0.40314]
[1729707782400,5.1394,2483.5,2483.1,0.40314]
[1729707782401,2.5914,2483.5,2483.2,3.87]
[1729707782601,0.40308,2483.5,2483.4,3.87]
[1729707782903,3.2078,2484.0,2483.6,0.40306]
[1729707783109,0.40303,2483.8,2483.6,0.40306]
[1729707783510,4.27954052,2483.9,2483.4,5.0108]
[1729707783706,3.2078,2484.3,2483.7,3.87]
[1729707784006,0.40296,2484.2,2483.9,3.87]
[1729707784205,0.40296,2484.2,2484.1,3.61078]
[1729707784206,4.27673555,2484.2,2484.1,3.61078]
[1729707784406,3.2078,2485.0,2484.1,3.61078]
[1729707784611,0.40286,2484.8,2484.5,3.2078]
[1729707784813,0.40287,2484.8,2484.6,40.8]
[1729707784999,3.2078,2485.0,2484.6,40.8]
[1729707785603,3.2078,2484.7,2484.1,1.801]
[1729707785803,3.2078,2484.3,2484.1,5.671]
[1729707786002,0.40294,2484.4,2484.2,40.8]
[1729707786505,4.21498,2484.8,2484.2,40.8]
[1729707786708,0.40292,2484.5,2484.2,40.8]
[1729707786904,4.30396781,2484.7,2484.2,40.8]
[1729707787109,4.30396781,2484.7,2484.3,3.87]
[1729707787416,3.61067,2484.8,2484.5,0.4029]
[1729707787607,3.61067,2484.8,2484.2,40.8]
[1729707787608,3.2078,2484.8,2484.6,4.2729]
[1729707788109,2.5914,2485.3,2484.3,7.0778]
[1729707788110,3.2078,2485.1,2484.3,7.0778]
[1729707788306,4.49600494,2484.7,2484.4,1.801]
[1729707788506,0.40291,2484.5,2484.4,1.801]
[1729707789103,0.40295,2484.3,2484.2,40.8]
[1729707789304,0.40295,2484.3,2483.9,3.87]
[1729707789305,3.2078,2484.3,2483.9,3.87]
[1729707789608,0.40299,2484.0,2483.9,5.671]
[1729707789809,7.75257825,2484.3,2483.9,5.671]
[1729707789810,7.75257825,2484.3,2483.9,46.471]
[1729707790111,0.40297,2484.2,2483.9,46.87399]
[1729707790304,0.40297,2484.2,2484.1,3.87]
[1729707790499,4.0256,2484.2,2483.7,3.2078]
[1729707790714,3.2078,2484.0,2483.6,5.67]
[1729707790913,0.40299,2484.1,2483.8,3.87]
[1729707791110,0.40299,2484.1,2483.9,40.8]
[1729707791818,0.40298,2484.1,2484.0,3.87]
[1729707792017,3.2078,2484.2,2483.9,40.8]
[1729707792316,0.40299,2484.0,2483.9,40.8]
[1729707792611,3.2078,2484.2,2483.9,40.8]
[1729707792915,3.2078,2484.2,2483.5,10.083]
[1729707792916,0.40304,2483.8,2483.5,15.753]
[1729707793213,0.40302,2483.9,2483.7,3.87]
[1729707793416,4.20835278,2484.1,2483.7,3.87]
[1729707793610,3.2078,2484.2,2483.9,0.403]
[1729707793814,3.2078,2484.2,2484.0,3.87]
[1729707793815,3.61077,2484.2,2484.0,3.87]
[1729707794008,3.2078,2484.2,2484.0,3.87]
[1729707794207,0.40298,2484.1,2484.0,3.87]
[1729707794512,4.61444355,2484.3,2484.0,3.87]
[1729707794719,0.40298,2484.1,2484.0,3.87]
[1729707795111,0.40297,2484.2,2484.0,4.27299]
[1729707795308,3.2078,2484.6,2484.0,7.0778]
[1729707795515,2.91299,2484.7,2484.5,0.4029]
[1729707795819,2.5101,2484.7,2484.6,0.4029]
[1729707796119,2.5101,2484.7,2484.5,3.87]
[1729707796415,0.40288,2484.8,2484.6,0.40289]
[1729707796716,0.40289,2484.7,2484.5,4.2729]
[1729707797113,0.4029,2484.6,2484.5,3.87]
[1729707798118,4.54840003,2484.8,2484.5,44.67]
[1729707798313,0.40287,2484.8,2484.6,0.40289]
[1729707798509,0.40286,2484.8,2484.5,44.67]
[1729707798712,8.59547628,2484.7,2484.3,3.87]
[1729707798913,0.40293,2484.4,2484.3,3.87]
[1729707799319,8.78569628,2484.7,2484.2,1.8]
[1729707799523,0.40295,2484.3,2484.2,1.8]
[1729707800222,2.3801,2484.9,2484.2,5.8256]
[1729707800426,2.3801,2484.9,2484.6,3.87]
[1729707800619,4.40322983,2484.8,2484.6,4.2729]
[1729707800827,0.40288,2484.7,2484.6,3.87]
[1729707801419,0.40288,2484.7,2484.6,4.2729]
[1729707801620,0.40288,2484.7,2484.6,3.87]
[1729707802121,0.40291,2484.5,2484.4,3.87]
[1729707802627,0.40291,2484.5,2484.4,4.27293]
[1729707802823,0.40291,2484.5,2484.4,3.87]
[1729707803419,4.42771,2484.5,2484.4,3.87]
[1729707803621,0.40294,2484.4,2484.3,0.40294]
[1729707803823,0.40295,2484.3,2484.2,2.20296]
[1729707804321,0.40296,2484.2,2484.1,40.8]
[1729707804718,4.42856,2484.2,2484.1,40.8]
[1729707804918,8.66915236,2484.2,2484.1,40.8]
[1729707805725,3.2078,2484.7,2484.1,51.9034]
[1729707806024,5.5879,2484.9,2484.6,3.87]
[1729707806227,0.40288,2484.8,2484.6,3.87]
[1729707806426,4.50307322,2484.8,2484.6,4.27288]
[1729707806627,4.90593322,2484.8,2484.6,4.27288]
[1729707806829,5.5879,2484.9,2484.6,3.87]
[1729707807234,0.40287,2484.8,2484.6,4.27289]
[1729707807528,0.40287,2484.8,2484.6,3.87]
[1729707807529,0.40288,2484.8,2484.6,3.87]
[1729707807731,0.40288,2484.8,2484.6,4.2729]
[1729707807927,0.40287,2484.8,2484.6,4.27288]
[1729707808229,3.61065,2484.9,2484.7,0.40288]
[1729707808535,4.37442664,2484.8,2484.6,3.87]
[1729707808827,3.2078,2484.9,2484.7,0.40288]
[1729707809034,2.5687,2485.3,2484.8,3.2078]
[1729707809221,2.5687,2485.3,2485.0,3.87]
[1729707809424,4.4524862,2485.2,2485.0,3.87]
[1729707809624,0.40284,2485.0,2484.8,3.61066]
[1729707809927,0.40284,2485.0,2484.8,0.40286]
[1729707810336,4.4524862,2485.2,2485.0,0.40282]
[1729707810622,0.40282,2485.1,2484.9,0.40283]
[1729707810822,0.40282,2485.1,2485.0,0.40283]
[1729707811025,0.40282,2485.1,2484.9,0.40284]
[1729707811229,4.4524862,2485.2,2484.7,5.67]
[1729707811537,0.40284,2485.0,2484.9,0.40285]
[1729707811832,0.40285,2484.9,2484.8,0.40286]
[1729707812030,2.4604,2485.2,2484.7,5.67]
[1729707812331,0.40286,2484.8,2484.7,6.07288]
[1729707812524,0.40286,2484.8,2484.7,1.8]
[1729707812725,0.40286,2484.8,2484.7,40.8]
[1729707813130,4.51493045,2484.8,2484.0,7.0778]
[1729707813327,5.6158,2484.7,2484.2,3.87]
[1729707813529,0.40292,2484.5,2484.3,0.40294]
[1729707813826,0.40291,2484.5,2484.4,40.8]
[1729707814632,2.408,2484.7,2484.4,41.20293]
[1729707814832,2.408,2484.7,2484.4,40.8]
[1729707815034,0.40291,2484.5,2484.4,40.8]
[1729707815234,2.408,2484.7,2484.4,40.8]
[1729707815537,3.2078,2485.0,2484.5,3.87]
[1729707815736,0.40287,2484.8,2484.7,0.40288]
[1729707815926,3.2078,2485.0,2484.5,5.696]
[1729707816126,0.40286,2484.9,2484.7,0.40287]
[1729707816329,0.40286,2484.9,2484.8,0.40286]
[1729707816524,3.2078,2485.0,2484.5,5.696]
[1729707816732,2.4604,2485.2,2484.7,4.8772]
[1729707816936,2.86321,2485.2,2485.1,0.40282]
[1729707817434,2.86321,2485.2,2484.5,5.696]
[1729707817435,11.80755003,2485.2,2484.5,5.696]
[1729707817742,0.40284,2485.0,2484.9,0.40284]
[1729707817932,6.77653003,2485.2,2484.8,3.87]
[1729707818133,0.40284,2485.0,2484.8,3.87]
[1729707818732,0.40282,2485.1,2484.8,3.87]
[1729707818939,4.31613003,2485.2,2485.1,0.40282]
[1729707819638,5.1853,2485.5,2485.3,0.40278]
[1729707819836,3.2078,2485.7,2485.3,3.87]
[1729707820033,3.2078,2485.7,2485.3,5.696]
[1729707820247,4.40648666,2485.6,2485.5,4.27275]
[1729707820434,3.2078,2486.0,2485.5,3.87]
[1729707820637,0.40271,2485.8,2485.6,40.8]
[1729707820939,4.80920666,2485.7,2485.6,40.8]
[1729707821137,8.01700666,2485.7,2485.6,40.8]
[1729707821332,7.231,2485.7,2485.3,1.826]
[1729707821644,0.40277,2485.4,2485.3,1.826]
[1729707822239,0.40278,2485.3,2485.2,40.8]
[1729707822835,0.40285,2484.9,2484.8,7.48066]
[1729707823039,0.40285,2484.9,2484.7,2.22887]
[1729707823238,0.40285,2484.9,2484.8,40.8]
[1729707823441,1.00706,2485.1,2484.7,1.826]
[1729707823642,0.40286,2484.8,2484.7,1.826]
[1729707823942,0.40286,2484.8,2484.7,42.626]
[1729707824742,0.40285,2484.9,2484.8,0.40286]
[1729707825037,0.40285,2484.9,2484.7,42.626]
[1729707825340,0.40285,2484.9,2484.8,0.40286]
[1729707825543,0.40286,2484.8,2484.7,43.02887]
[1729707825834,0.40286,2484.9,2484.7,42.626]
[1729707826042,0.40286,2484.9,2484.8,0.40286]
[1729707826950,0.40286,2484.8,2484.7,40.8]
[1729707827133,11.82780597,2485.1,2484.4,0.40292]
[1729707827334,5.1481,2485.4,2484.2,3.2078]
[1729707827335,0.40295,2484.3,2484.2,3.2078]
[1729707827740,0.40295,2484.3,2484.2,44.0078]
[1729707827932,2.4515,2484.7,2484.2,45.01521]
[1729707828143,2.4515,2484.7,2484.6,0.4029]
[1729707828144,0.40288,2484.7,2484.6,0.4029]
[1729707828444,3.2078,2484.8,2484.7,0.40288]
[1729707828745,0.40287,2484.8,2484.7,0.40287]
[1729707828932,2.4555,2484.9,2484.8,0.40286]
[1729707829134,2.4555,2484.9,2484.4,3.87]
[1729707829348,0.40289,2484.7,2484.4,3.87]
[1729707829644,0.40289,2484.7,2484.5,0.40291]
[1729707830237,0.40291,2484.6,2484.4,3.87]
[1729707830431,0.40291,2484.6,2484.4,4.27292]
[1729707830847,0.40291,2484.6,2484.4,3.87]
[1729707831141,0.40289,2484.7,2484.5,0.40291]
[1729707831446,4.52979858,2484.8,2484.4,3.87]
[1729707831642,0.4029,2484.6,2484.4,4.27292]
[1729707832240,4.52979858,2484.8,2484.4,3.87]
[1729707832438,4.52979858,2484.8,2484.2,44.0078]
[1729707832439,0.40293,2484.4,2484.2,48.28075]
[1729707832637,0.40295,2484.3,2484.2,45.8338]
[1729707834049,1.00725,2484.6,2484.2,45.8338]
[1729707834348,0.40295,2484.3,2484.2,44.0078]
[1729707834642,0.40295,2484.3,2484.2,40.8]
[1729707835547,7.34996398,2484.5,2484.3,0.40294]
[1729707835743,2.92312,2484.5,2484.3,0.40294]
[1729707836143,2.5202,2484.5,2484.4,0.40293]
[1729707836353,0.40289,2484.7,2484.5,0.4029]
[1729707836546,0.4029,2484.6,2484.4,4.27292]
[1729707836748,4.6361861,2484.7,2484.3,0.40294]
[1729707837051,0.40291,2484.6,2484.4,0.40292]
[1729707837348,4.67895984,2484.6,2484.4,0.40292]
[1729707837554,4.27604984,2484.7,2484.2,44.67]
[1729707837848,4.27604984,2484.8,2484.2,47.8778]
[1729707838155,0.40292,2484.5,2484.3,0.40294]
[1729707838346,1.00718,2484.8,2484.3,0.40294]
[1729707838549,0.40292,2484.5,2484.3,0.40294]
[1729707838749,4.26096587,2484.8,2484.4,3.87]
[1729707838955,0.4029,2484.7,2484.5,0.40291]
[1729707839154,0.4029,2484.6,2484.4,4.27292]
[1729707839451,4.66383587,2484.8,2484.6,0.40289]
[1729707839646,4.66383587,2484.8,2484.7,0.40288]
[1729707840567,4.26096587,2484.8,2484.5,3.2078]
[1729707840864,0.40289,2484.7,2484.6,0.4029]
[1729707841064,4.26096587,2484.8,2484.4,3.87]
[1729707841266,0.40288,2484.7,2484.5,0.4029]
[1729707841567,4.26096587,2484.8,2484.5,0.4029]
[1729707841568,4.26096587,2484.8,2484.7,0.40288]
[1729707841767,5.6538,2485.3,2484.7,3.2078]
[1729707841968,0.40281,2485.2,2485.0,0.40282]
[1729707842167,4.75918307,2485.2,2485.0,0.40282]
[1729707842362,2.84879,2485.3,2485.1,0.40282]
[1729707842562,0.4028,2485.2,2485.1,0.40282]
[1729707842757,2.84879,2485.3,2485.1,0.40282]
[1729707842962,5.8409,2485.6,2485.0,3.87]
[1729707843164,5.8409,2485.6,2485.0,3.2078]
[1729707843460,3.2078,2485.6,2485.5,4.27275]
[1729707843661,1.00665,2486.1,2485.5,4.27275]
[1729707843662,3.2078,2486.0,2485.9,0.40269]
[1729707843967,3.2078,2486.0,2485.8,3.87]
[1729707844169,3.2078,2486.0,2485.8,4.2727]